[Event "Titled Tuesday Blitz March 14 Late 2023"]
[White "Gubajdullin, Alexei"]
[Black "Burg, Twan"]
[WhiteFideId "4141202"]
[BlackFideId "1010697"]
[WhiteElo "2267"]
[BlackElo "2422"]
[Result "1-0"]
[Round "03"]
[TimeControl "180+1"]
[Date "2023.03.14"]
[WhiteClock "0:00:13"]
[BlackClock "0:00:20"]

1. d4 {[%clk 0:02:59]}  Nf6 {[%clk 0:02:59]} 2. Nf3 {[%clk 0:02:58]}  d5 {[%clk 0:03:00]} 3. Bf4 {[%clk 0:02:59]}  c5 {[%clk 0:03:00]} 4. e3 {[%clk 0:02:59]}  Nc6 {[%clk 0:03:00]} 5. Nbd2 {[%clk 0:03:00]}  Qb6 {[%clk 0:03:00]} 6. dxc5 {[%clk 0:02:50]}  Qxb2 {[%clk 0:03:00]} 7. c4 {[%clk 0:02:45]}  e6 {[%clk 0:02:57]} 8. Qc1 {[%clk 0:02:45]}  Qxc1+ {[%clk 0:02:45]} 9. Rxc1 {[%clk 0:02:45]}  Bxc5 {[%clk 0:02:46]} 10. cxd5 {[%clk 0:02:45]}  Ba3 {[%clk 0:02:46]} 11. dxc6 {[%clk 0:02:44]}  Bxc1 {[%clk 0:02:46]} 12. Nc4 {[%clk 0:02:44]}  bxc6 {[%clk 0:02:29]} 13. Kd1 {[%clk 0:02:43]}  Bxe3 {[%clk 0:02:25]} 14. Bxe3 {[%clk 0:02:38]}  O-O {[%clk 0:02:24]} 15. Kc2 {[%clk 0:02:28]}  Nd5 {[%clk 0:02:23]} 16. Bc5 {[%clk 0:02:27]}  Rd8 {[%clk 0:02:23]} 17. Nfe5 {[%clk 0:02:16]}  Bd7 {[%clk 0:02:15]} 18. Be2 {[%clk 0:02:11]}  Be8 {[%clk 0:02:13]} 19. Rb1 {[%clk 0:02:09]}  f6 {[%clk 0:02:10]} 20. Nd3 {[%clk 0:01:32]}  Bg6 {[%clk 0:02:04]} 21. g3 {[%clk 0:01:31]}  Rab8 {[%clk 0:02:04]} 22. Rxb8 {[%clk 0:01:28]}  Rxb8 {[%clk 0:02:04]} 23. a3 {[%clk 0:01:20]}  a6 {[%clk 0:01:55]} 24. Kd2 {[%clk 0:00:59]}  Rb1 {[%clk 0:01:35]} 25. Nb4 {[%clk 0:00:58]}  Nxb4 {[%clk 0:01:27]} 26. axb4 {[%clk 0:00:56]}  e5 {[%clk 0:01:16]} 27. Na5 {[%clk 0:00:53]}  Rb2+ {[%clk 0:01:06]} 28. Ke3 {[%clk 0:00:53]}  Bb1 {[%clk 0:00:53]} 29. Bxa6 {[%clk 0:00:51]}  f5 {[%clk 0:00:52]} 30. Bc4+ {[%clk 0:00:49]}  Kh8 {[%clk 0:00:52]} 31. Nxc6 {[%clk 0:00:47]}  g5 {[%clk 0:00:51]} 32. Nxe5 {[%clk 0:00:46]}  Rc2 {[%clk 0:00:48]} 33. b5 {[%clk 0:00:40]}  h5 {[%clk 0:00:44]} 34. b6 {[%clk 0:00:39]}  Kh7 {[%clk 0:00:42]} 35. b7 {[%clk 0:00:38]}  Rb2 {[%clk 0:00:42]} 36. Bd5 {[%clk 0:00:38]}  Be4 {[%clk 0:00:42]} 37. Bxe4 {[%clk 0:00:28]}  fxe4 {[%clk 0:00:43]} 38. Kxe4 {[%clk 0:00:28]}  Rxb7 {[%clk 0:00:43]} 39. Kf5 {[%clk 0:00:27]}  Rg7 {[%clk 0:00:40]} 40. Be3 {[%clk 0:00:26]}  g4 {[%clk 0:00:38]} 41. Nd3 {[%clk 0:00:26]}  Rb7 {[%clk 0:00:33]} 42. Nf4 {[%clk 0:00:26]}  Rb5+ {[%clk 0:00:34]} 43. Kf6 {[%clk 0:00:26]}  Ra5 {[%clk 0:00:34]} 44. Bd4 {[%clk 0:00:25]}  Rb5 {[%clk 0:00:34]} 45. Ne6 {[%clk 0:00:25]}  Kh6 {[%clk 0:00:31]} 46. Kf7 {[%clk 0:00:25]}  Rf5+ {[%clk 0:00:31]} 47. Ke7 {[%clk 0:00:21]}  h4 {[%clk 0:00:31]} 48. gxh4 {[%clk 0:00:20]}  Rf3 {[%clk 0:00:28]} 49. Ng5 {[%clk 0:00:18]}  Rf4 {[%clk 0:00:25]} 50. Be3 {[%clk 0:00:17]}  Ra4 {[%clk 0:00:25]} 51. Ne6+ {[%clk 0:00:15]}  Kh5 {[%clk 0:00:25]} 52. Bg5 {[%clk 0:00:15]}  Ra2 {[%clk 0:00:20]} 53. Nf4# {[%clk 0:00:13]} 1-0


[Site "https://www.chess.com"]

[Event "Titled Tuesday Blitz March 14 Late 2023"]
[White "Harish, Neeraj"]
[Black "Chylewski, Patryk"]
[WhiteFideId "30958130"]
[BlackFideId "1186191"]
[WhiteElo "1963"]
[BlackElo "2163"]
[Result "1-0"]
[Round "03"]
[TimeControl "180+1"]
[Date "2023.03.14"]
[WhiteClock "0:02:06"]
[BlackClock "0:01:36"]

1. e4 {[%clk 0:03:00]}  c5 {[%clk 0:02:59]} 2. Nf3 {[%clk 0:02:59]}  e6 {[%clk 0:02:59]} 3. d4 {[%clk 0:02:59]}  cxd4 {[%clk 0:03:00]} 4. Nxd4 {[%clk 0:02:59]}  Nc6 {[%clk 0:03:01]} 5. Nc3 {[%clk 0:02:59]}  Qc7 {[%clk 0:03:01]} 6. Be3 {[%clk 0:02:57]}  a6 {[%clk 0:03:01]} 7. g4 {[%clk 0:02:58]}  Bb4 {[%clk 0:02:58]} 8. Nxc6 {[%clk 0:02:56]}  dxc6 {[%clk 0:02:52]} 9. Qd4 {[%clk 0:02:45]}  Bf8 {[%clk 0:02:51]} 10. O-O-O {[%clk 0:02:44]}  e5 {[%clk 0:02:42]} 11. Qd2 {[%clk 0:02:41]}  Bxg4 {[%clk 0:02:40]} 12. Be2 {[%clk 0:02:38]}  Bxe2 {[%clk 0:02:33]} 13. Qxe2 {[%clk 0:02:39]}  Bb4 {[%clk 0:02:32]} 14. Qc4 {[%clk 0:02:28]}  Qe7 {[%clk 0:02:24]} 15. Rhg1 {[%clk 0:02:26]}  Kf8 {[%clk 0:02:03]} 16. a3 {[%clk 0:02:15]}  Bd6 {[%clk 0:01:59]} 17. Rxd6 {[%clk 0:02:12]}  Qxd6 {[%clk 0:01:46]} 18. Bc5 {[%clk 0:02:11]}  Qxc5 {[%clk 0:01:42]} 19. Qxc5+ {[%clk 0:02:11]}  Ne7 {[%clk 0:01:42]} 20. Rd1 {[%clk 0:02:07]}  Re8 {[%clk 0:01:38]} 21. Rd7 {[%clk 0:02:06]}  f6 {[%clk 0:01:36]} 22. Kb1 {[%clk 0:02:06]}  Kf7 {[%clk 0:01:36]} 23. Rxb7 {[%clk 0:02:06]} 1-0


[Site "https://www.chess.com"]

[Event "Titled Tuesday Blitz March 14 Late 2023"]
[White "Harvey, Marcus R"]
[Black "Sarana, Alexey"]
[WhiteFideId "400092"]
[BlackFideId "24133795"]
[WhiteElo "2457"]
[BlackElo "2714"]
[Result "0-1"]
[Round "03"]
[TimeControl "180+1"]
[Date "2023.03.14"]
[WhiteClock "0:00:08"]
[BlackClock "0:00:05"]

1. d4 {[%clk 0:03:00]}  Nf6 {[%clk 0:02:54]} 2. c4 {[%clk 0:03:00]}  e6 {[%clk 0:02:52]} 3. Nc3 {[%clk 0:02:59]}  Bb4 {[%clk 0:02:51]} 4. e3 {[%clk 0:02:59]}  O-O {[%clk 0:02:50]} 5. Bd3 {[%clk 0:02:59]}  d5 {[%clk 0:02:50]} 6. a3 {[%clk 0:02:58]}  Bxc3+ {[%clk 0:02:50]} 7. bxc3 {[%clk 0:02:59]}  dxc4 {[%clk 0:02:51]} 8. Bxc4 {[%clk 0:02:59]}  c5 {[%clk 0:02:52]} 9. Nf3 {[%clk 0:02:57]}  Qc7 {[%clk 0:02:51]} 10. Be2 {[%clk 0:02:49]}  b6 {[%clk 0:02:51]} 11. O-O {[%clk 0:02:49]}  Ba6 {[%clk 0:02:51]} 12. Bb2 {[%clk 0:02:46]}  Bxe2 {[%clk 0:02:49]} 13. Qxe2 {[%clk 0:02:46]}  Nc6 {[%clk 0:02:46]} 14. c4 {[%clk 0:02:46]}  Ne7 {[%clk 0:02:46]} 15. Rac1 {[%clk 0:02:46]}  Rad8 {[%clk 0:02:45]} 16. Rfd1 {[%clk 0:02:46]}  Ng6 {[%clk 0:02:39]} 17. a4 {[%clk 0:02:45]}  Qc6 {[%clk 0:02:38]} 18. Qc2 {[%clk 0:02:41]}  Ne4 {[%clk 0:02:34]} 19. Ne1 {[%clk 0:02:31]}  Rd7 {[%clk 0:02:32]} 20. d5 {[%clk 0:02:28]}  exd5 {[%clk 0:02:19]} 21. cxd5 {[%clk 0:02:29]}  Rxd5 {[%clk 0:02:03]} 22. Qxe4 {[%clk 0:02:29]}  Rfd8 {[%clk 0:02:04]} 23. Rxd5 {[%clk 0:02:29]}  Rxd5 {[%clk 0:02:04]} 24. h4 {[%clk 0:02:07]}  Qd7 {[%clk 0:02:05]} 25. g3 {[%clk 0:02:00]}  h5 {[%clk 0:02:03]} 26. Ng2 {[%clk 0:01:59]}  Rd2 {[%clk 0:01:59]} 27. Bc3 {[%clk 0:01:58]}  Ra2 {[%clk 0:01:59]} 28. Qc4 {[%clk 0:01:55]}  Rxa4 {[%clk 0:01:57]} 29. Qe2 {[%clk 0:01:54]}  Qg4 {[%clk 0:01:52]} 30. Qxg4 {[%clk 0:01:54]}  hxg4 {[%clk 0:01:53]} 31. h5 {[%clk 0:01:53]}  Ne7 {[%clk 0:01:42]} 32. Rd1 {[%clk 0:01:54]}  Ra3 {[%clk 0:01:36]} 33. Bb2 {[%clk 0:01:49]}  Ra2 {[%clk 0:01:34]} 34. Rd8+ {[%clk 0:01:44]}  Kh7 {[%clk 0:01:34]} 35. Bc3 {[%clk 0:01:34]}  Ra3 {[%clk 0:01:19]} 36. Bd2 {[%clk 0:01:27]}  c4 {[%clk 0:01:15]} 37. Rd7 {[%clk 0:01:26]}  Nc6 {[%clk 0:01:16]} 38. Rc7 {[%clk 0:01:06]}  Ne5 {[%clk 0:01:15]} 39. Nh4 {[%clk 0:01:05]}  a5 {[%clk 0:00:55]} 40. e4 {[%clk 0:01:03]}  b5 {[%clk 0:00:44]} 41. Rc5 {[%clk 0:01:02]}  Ra2 {[%clk 0:00:13]} 42. Bc3 {[%clk 0:00:43]}  Nd3 {[%clk 0:00:08]} 43. Rxb5 {[%clk 0:00:43]}  a4 {[%clk 0:00:09]} 44. Nf5 {[%clk 0:00:40]}  a3 {[%clk 0:00:08]} 45. Ra5 {[%clk 0:00:36]}  Nxf2 {[%clk 0:00:07]} 46. Bb4 {[%clk 0:00:21]}  Nxe4 {[%clk 0:00:03]} 47. Rxa3 {[%clk 0:00:20]}  Rb2 {[%clk 0:00:04]} 48. Bf8 {[%clk 0:00:19]}  c3 {[%clk 0:00:04]} 49. Ra1 {[%clk 0:00:09]}  c2 {[%clk 0:00:03]} 50. Rc1 {[%clk 0:00:09]}  Nc3 {[%clk 0:00:01]} 51. Kf1 {[%clk 0:00:09]}  Na2 {[%clk 0:00:01]} 52. Ba3 {[%clk 0:00:09]}  Nxc1 {[%clk 0:00:02]} 53. Bxb2 {[%clk 0:00:09]}  Nd3 {[%clk 0:00:03]} 54. Ba3 {[%clk 0:00:10]}  c1=Q+ {[%clk 0:00:02]} 55. Bxc1 {[%clk 0:00:10]}  Nxc1 {[%clk 0:00:03]} 56. Ne3 {[%clk 0:00:11]}  Kh6 {[%clk 0:00:02]} 57. Nxg4+ {[%clk 0:00:11]}  Kxh5 {[%clk 0:00:03]} 58. Ne5 {[%clk 0:00:12]}  f6 {[%clk 0:00:03]} 59. Nd7 {[%clk 0:00:09]}  Kg4 {[%clk 0:00:03]} 60. Kg2 {[%clk 0:00:08]}  Ne2 {[%clk 0:00:03]} 61. Nc5 {[%clk 0:00:07]}  Nxg3 {[%clk 0:00:03]} 62. Ne6 {[%clk 0:00:08]}  g5 {[%clk 0:00:04]} 63. Nd4 {[%clk 0:00:08]}  Nh5 {[%clk 0:00:04]} 64. Nf3 {[%clk 0:00:09]}  Nf4+ {[%clk 0:00:05]} 65. Kf2 {[%clk 0:00:09]}  Nh3+ {[%clk 0:00:05]} 66. Ke3 {[%clk 0:00:10]}  f5 {[%clk 0:00:04]} 67. Ne5+ {[%clk 0:00:10]}  Kg3 {[%clk 0:00:04]} 68. Nd3 {[%clk 0:00:10]}  f4+ {[%clk 0:00:04]} 69. Ke2 {[%clk 0:00:10]}  g4 {[%clk 0:00:04]} 70. Kf1 {[%clk 0:00:10]}  f3 {[%clk 0:00:04]} 71. Ne1 {[%clk 0:00:09]}  Nf4 {[%clk 0:00:04]} 72. Nc2 {[%clk 0:00:09]}  Nd5 {[%clk 0:00:04]} 73. Kg1 {[%clk 0:00:10]}  Kf4 {[%clk 0:00:04]} 74. Nd4 {[%clk 0:00:10]}  g3 {[%clk 0:00:04]} 75. Kh1 {[%clk 0:00:09]}  Ne3 {[%clk 0:00:03]} 76. Ne6+ {[%clk 0:00:07]}  Kf5 {[%clk 0:00:04]} 77. Nd4+ {[%clk 0:00:07]}  Ke4 {[%clk 0:00:04]} 78. Ne6 {[%clk 0:00:07]}  f2 {[%clk 0:00:04]} 79. Ng5+ {[%clk 0:00:08]}  Kf5 {[%clk 0:00:05]} 0-1


[Site "https://www.chess.com"]

[Event "Titled Tuesday Blitz March 14 Late 2023"]
[White "Jaskolka, Tomasz"]
[Black "Maranhao,Jose Renato Ruiz"]
[WhiteFideId "1170791"]
[BlackFideId "2135175"]
[WhiteElo "2155"]
[BlackElo "1970"]
[Result "1-0"]
[Round "03"]
[TimeControl "180+1"]
[Date "2023.03.14"]
[WhiteClock "0:00:20"]
[BlackClock "0:00:01"]

1. d4 {[%clk 0:03:00]}  g6 {[%clk 0:02:59]} 2. Bf4 {[%clk 0:02:56]}  Bg7 {[%clk 0:02:59]} 3. Nc3 {[%clk 0:02:57]}  b6 {[%clk 0:02:57]} 4. e4 {[%clk 0:02:57]}  Bb7 {[%clk 0:02:57]} 5. Nf3 {[%clk 0:02:57]}  d6 {[%clk 0:02:56]} 6. Bc4 {[%clk 0:02:57]}  e6 {[%clk 0:02:56]} 7. O-O {[%clk 0:02:56]}  Ne7 {[%clk 0:02:54]} 8. Qd2 {[%clk 0:02:55]}  O-O {[%clk 0:02:52]} 9. Bh6 {[%clk 0:02:54]}  Nd7 {[%clk 0:02:49]} 10. Rfe1 {[%clk 0:02:42]}  e5 {[%clk 0:02:47]} 11. dxe5 {[%clk 0:02:36]}  Nxe5 {[%clk 0:02:43]} 12. Bxg7 {[%clk 0:02:34]}  Nxf3+ {[%clk 0:02:33]} 13. gxf3 {[%clk 0:02:35]}  Kxg7 {[%clk 0:02:32]} 14. Kh1 {[%clk 0:02:31]}  Qd7 {[%clk 0:02:06]} 15. Rg1 {[%clk 0:02:29]}  Qh3 {[%clk 0:02:02]} 16. Rg3 {[%clk 0:02:28]}  Qh4 {[%clk 0:01:51]} 17. Rag1 {[%clk 0:02:25]}  f5 {[%clk 0:01:47]} 18. Bd5 {[%clk 0:01:50]}  Nxd5 {[%clk 0:01:24]} 19. Nxd5 {[%clk 0:01:49]}  fxe4 {[%clk 0:00:54]} 20. Qc3+ {[%clk 0:01:39]}  Kh6 {[%clk 0:00:14]} 21. Ne7 {[%clk 0:00:38]}  Rxf3 {[%clk 0:00:11]} 22. Rxg6+ {[%clk 0:00:20]}  hxg6 {[%clk 0:00:12]} 23. Rxg6+ {[%clk 0:00:21]}  Kh5 {[%clk 0:00:12]} 24. Qg7 {[%clk 0:00:21]}  Qxe7 {[%clk 0:00:01]} 25. Rh6# {[%clk 0:00:20]} 1-0


[Site "https://www.chess.com"]

[Event "Titled Tuesday Blitz March 14 Late 2023"]
[White "Kamsky, Gata"]
[Black "Deviprasath, Sharvesh"]
[WhiteFideId "2000024"]
[BlackFideId "30938228"]
[WhiteElo "2666"]
[BlackElo "2168"]
[Result "1-0"]
[Round "03"]
[TimeControl "180+1"]
[Date "2023.03.14"]
[WhiteClock "0:01:25"]
[BlackClock "0:01:31"]

1. e4 {[%clk 0:03:00]}  c5 {[%clk 0:02:59]} 2. Nf3 {[%clk 0:03:00]}  e6 {[%clk 0:02:51]} 3. d4 {[%clk 0:02:59]}  cxd4 {[%clk 0:02:52]} 4. Nxd4 {[%clk 0:02:58]}  Nc6 {[%clk 0:02:51]} 5. Nc3 {[%clk 0:02:57]}  Qc7 {[%clk 0:02:51]} 6. Qd3 {[%clk 0:02:50]}  a6 {[%clk 0:02:47]} 7. Nxc6 {[%clk 0:02:50]}  bxc6 {[%clk 0:02:46]} 8. Qg3 {[%clk 0:02:50]}  Qb6 {[%clk 0:02:46]} 9. Bd3 {[%clk 0:02:48]}  d5 {[%clk 0:02:40]} 10. O-O {[%clk 0:02:48]}  Nf6 {[%clk 0:02:35]} 11. Re1 {[%clk 0:02:46]}  Be7 {[%clk 0:02:33]} 12. e5 {[%clk 0:02:35]}  Nh5 {[%clk 0:02:25]} 13. Qg4 {[%clk 0:01:49]}  g6 {[%clk 0:02:24]} 14. Na4 {[%clk 0:01:48]}  Qc7 {[%clk 0:02:18]} 15. Bh6 {[%clk 0:01:47]}  c5 {[%clk 0:02:13]} 16. c4 {[%clk 0:01:42]}  d4 {[%clk 0:02:12]} 17. b3 {[%clk 0:01:41]}  Bb7 {[%clk 0:02:09]} 18. Be4 {[%clk 0:01:31]}  Bxe4 {[%clk 0:02:05]} 19. Qxe4 {[%clk 0:01:32]}  Rb8 {[%clk 0:01:50]} 20. g4 {[%clk 0:01:31]}  f5 {[%clk 0:01:39]} 21. exf6 {[%clk 0:01:31]}  Nxf6 {[%clk 0:01:39]} 22. Qxe6 {[%clk 0:01:31]}  Qd7 {[%clk 0:01:31]} 23. Qxf6 {[%clk 0:01:25]} 1-0


[Site "https://www.chess.com"]

[Event "Titled Tuesday Blitz March 14 Late 2023"]
[White "Khismatullin, Denis"]
[Black "Averjanov, Alexey"]
[WhiteFideId "4142578"]
[BlackFideId "14109867"]
[WhiteElo "2531"]
[BlackElo "2719"]
[Result "1-0"]
[Round "03"]
[TimeControl "180+1"]
[Date "2023.03.14"]
[WhiteClock "0:00:13"]
[BlackClock "0:00:08"]

1. d4 {[%clk 0:02:55]}  d5 {[%clk 0:02:56]} 2. c4 {[%clk 0:02:55]}  dxc4 {[%clk 0:02:56]} 3. e3 {[%clk 0:02:53]}  Nf6 {[%clk 0:02:56]} 4. Bxc4 {[%clk 0:02:53]}  e6 {[%clk 0:02:55]} 5. Nf3 {[%clk 0:02:54]}  a6 {[%clk 0:02:56]} 6. O-O {[%clk 0:02:53]}  b5 {[%clk 0:02:55]} 7. Be2 {[%clk 0:02:48]}  Bb7 {[%clk 0:02:55]} 8. a4 {[%clk 0:02:48]}  b4 {[%clk 0:02:55]} 9. Nbd2 {[%clk 0:02:48]}  Nbd7 {[%clk 0:02:55]} 10. b3 {[%clk 0:02:49]}  c5 {[%clk 0:02:54]} 11. Bb2 {[%clk 0:02:49]}  Be7 {[%clk 0:02:54]} 12. Nc4 {[%clk 0:02:49]}  Qc7 {[%clk 0:02:54]} 13. Rc1 {[%clk 0:02:48]}  O-O {[%clk 0:02:54]} 14. Nfe5 {[%clk 0:02:49]}  Rfd8 {[%clk 0:02:52]} 15. Bf3 {[%clk 0:02:42]}  Nxe5 {[%clk 0:02:49]} 16. Nxe5 {[%clk 0:02:41]}  Rac8 {[%clk 0:02:48]} 17. h3 {[%clk 0:02:32]}  h6 {[%clk 0:02:46]} 18. Nd3 {[%clk 0:02:30]}  Ne4 {[%clk 0:01:56]} 19. Qe2 {[%clk 0:02:15]}  Qb8 {[%clk 0:01:52]} 20. Bxe4 {[%clk 0:01:57]}  Bxe4 {[%clk 0:01:53]} 21. Nxc5 {[%clk 0:01:55]}  Bxc5 {[%clk 0:01:50]} 22. dxc5 {[%clk 0:01:46]}  Qb7 {[%clk 0:01:41]} 23. Qg4 {[%clk 0:01:44]}  Bg6 {[%clk 0:01:37]} 24. Rfd1 {[%clk 0:01:44]}  Rxd1+ {[%clk 0:01:32]} 25. Rxd1 {[%clk 0:01:45]}  Kh7 {[%clk 0:01:19]} 26. Rd6 {[%clk 0:01:26]}  a5 {[%clk 0:01:16]} 27. h4 {[%clk 0:01:22]}  Qe4 {[%clk 0:01:12]} 28. Qd1 {[%clk 0:00:44]}  Rxc5 {[%clk 0:01:07]} 29. Bd4 {[%clk 0:00:44]}  Rc2 {[%clk 0:00:54]} 30. h5 {[%clk 0:00:42]}  Bf5 {[%clk 0:00:53]} 31. f3 {[%clk 0:00:34]}  Qh4 {[%clk 0:00:50]} 32. e4 {[%clk 0:00:33]}  Qg3 {[%clk 0:00:39]} 33. Qxc2 {[%clk 0:00:18]}  Qxd6 {[%clk 0:00:39]} 34. Bf2 {[%clk 0:00:16]}  Qe5 {[%clk 0:00:18]} 35. exf5 {[%clk 0:00:15]}  exf5 {[%clk 0:00:19]} 36. g4 {[%clk 0:00:15]}  g6 {[%clk 0:00:17]} 37. hxg6+ {[%clk 0:00:15]}  fxg6 {[%clk 0:00:16]} 38. Qc5 {[%clk 0:00:15]}  Qa1+ {[%clk 0:00:11]} 39. Kg2 {[%clk 0:00:15]}  Qb2 {[%clk 0:00:12]} 40. Qxa5 {[%clk 0:00:13]}  Qxb3 {[%clk 0:00:11]} 41. Qc7+ {[%clk 0:00:13]}  Kg8 {[%clk 0:00:11]} 42. Bd4 {[%clk 0:00:14]}  Qc2+ {[%clk 0:00:08]} 43. Qxc2 {[%clk 0:00:13]} 1-0


[Site "https://www.chess.com"]

[Event "Titled Tuesday Blitz March 14 Late 2023"]
[White "Koellner, Ruben Gideon"]
[Black "Smith, Garrett L"]
[WhiteFideId "12993093"]
[BlackFideId "2024829"]
[WhiteElo "2303"]
[BlackElo "2293"]
[Result "1-0"]
[Round "03"]
[TimeControl "180+1"]
[Date "2023.03.14"]
[WhiteClock "0:01:47"]
[BlackClock "0:00:35"]

1. d4 {[%clk 0:03:00]}  Nf6 {[%clk 0:02:59]} 2. Nf3 {[%clk 0:03:01]}  g6 {[%clk 0:02:59]} 3. Nbd2 {[%clk 0:03:00]}  d5 {[%clk 0:02:58]} 4. e3 {[%clk 0:03:01]}  Bg7 {[%clk 0:02:57]} 5. b4 {[%clk 0:03:01]}  c6 {[%clk 0:02:56]} 6. c4 {[%clk 0:03:01]}  Bf5 {[%clk 0:02:51]} 7. Bb2 {[%clk 0:03:01]}  Ne4 {[%clk 0:02:48]} 8. Be2 {[%clk 0:02:55]}  Nxd2 {[%clk 0:02:43]} 9. Nxd2 {[%clk 0:02:52]}  O-O {[%clk 0:02:43]} 10. O-O {[%clk 0:02:51]}  Nd7 {[%clk 0:02:41]} 11. Nf3 {[%clk 0:02:49]}  Nb6 {[%clk 0:02:27]} 12. c5 {[%clk 0:02:48]}  Nd7 {[%clk 0:02:27]} 13. a4 {[%clk 0:02:48]}  Qc7 {[%clk 0:02:26]} 14. h3 {[%clk 0:02:39]}  e5 {[%clk 0:02:25]} 15. Re1 {[%clk 0:02:40]}  Rfe8 {[%clk 0:02:24]} 16. b5 {[%clk 0:02:39]}  e4 {[%clk 0:02:02]} 17. Nh2 {[%clk 0:02:13]}  h5 {[%clk 0:02:02]} 18. Qd2 {[%clk 0:02:09]}  Nf8 {[%clk 0:01:59]} 19. a5 {[%clk 0:02:09]}  Qd7 {[%clk 0:01:51]} 20. a6 {[%clk 0:02:07]}  cxb5 {[%clk 0:01:48]} 21. axb7 {[%clk 0:02:07]}  Qxb7 {[%clk 0:01:47]} 22. Ra5 {[%clk 0:02:08]}  a6 {[%clk 0:01:46]} 23. Rea1 {[%clk 0:02:08]}  Nd7 {[%clk 0:01:40]} 24. Bc3 {[%clk 0:02:05]}  Nb8 {[%clk 0:01:39]} 25. Bxb5 {[%clk 0:02:05]}  Bd7 {[%clk 0:01:36]} 26. Bxd7 {[%clk 0:02:00]}  Qxd7 {[%clk 0:01:36]} 27. Qa2 {[%clk 0:01:57]}  f5 {[%clk 0:01:29]} 28. Nf1 {[%clk 0:01:54]}  g5 {[%clk 0:01:29]} 29. c6 {[%clk 0:01:47]}  Qxc6 {[%clk 0:01:11]} 30. Qxd5+ {[%clk 0:01:48]}  Qxd5 {[%clk 0:01:07]} 31. Rxd5 {[%clk 0:01:49]}  Rf8 {[%clk 0:01:01]} 32. Ng3 {[%clk 0:01:48]}  Nc6 {[%clk 0:00:51]} 33. Rxf5 {[%clk 0:01:47]}  Rxf5 {[%clk 0:00:39]} 34. Nxf5 {[%clk 0:01:48]}  a5 {[%clk 0:00:35]} 35. Nxg7 {[%clk 0:01:47]} 1-0


[Site "https://www.chess.com"]

[Event "Titled Tuesday Blitz March 14 Late 2023"]
[White "Kokoszczynski, Jan"]
[Black "Xu, Yi"]
[WhiteFideId "1174460"]
[BlackFideId "8605564"]
[WhiteElo "2139"]
[BlackElo "2471"]
[Result "0-1"]
[Round "03"]
[TimeControl "180+1"]
[Date "2023.03.14"]
[WhiteClock "0:00:10"]
[BlackClock "0:00:23"]

1. e4 {[%clk 0:02:59]}  c5 {[%clk 0:02:59]} 2. Nf3 {[%clk 0:02:58]}  d6 {[%clk 0:02:59]} 3. d4 {[%clk 0:02:56]}  cxd4 {[%clk 0:03:00]} 4. Qxd4 {[%clk 0:02:56]}  Nc6 {[%clk 0:02:59]} 5. Bb5 {[%clk 0:02:57]}  Bd7 {[%clk 0:02:58]} 6. Qd3 {[%clk 0:02:57]}  g6 {[%clk 0:02:57]} 7. Nc3 {[%clk 0:02:56]}  Bg7 {[%clk 0:02:58]} 8. Bg5 {[%clk 0:02:54]}  a6 {[%clk 0:02:53]} 9. Bxc6 {[%clk 0:02:54]}  Bxc6 {[%clk 0:02:54]} 10. O-O-O {[%clk 0:02:44]}  Nf6 {[%clk 0:02:53]} 11. Kb1 {[%clk 0:02:40]}  Qa5 {[%clk 0:02:48]} 12. Rhe1 {[%clk 0:02:31]}  O-O {[%clk 0:02:46]} 13. Nd5 {[%clk 0:02:28]}  Rfe8 {[%clk 0:01:27]} 14. Bd2 {[%clk 0:01:55]}  Qd8 {[%clk 0:01:26]} 15. Bc3 {[%clk 0:01:51]}  Bxd5 {[%clk 0:01:18]} 16. exd5 {[%clk 0:01:50]}  Rc8 {[%clk 0:01:18]} 17. Re2 {[%clk 0:01:35]}  Rc5 {[%clk 0:01:18]} 18. Bxf6 {[%clk 0:01:33]}  Bxf6 {[%clk 0:01:18]} 19. Nd2 {[%clk 0:01:26]}  Bg7 {[%clk 0:01:13]} 20. Nb3 {[%clk 0:01:12]}  Rc7 {[%clk 0:01:12]} 21. Rde1 {[%clk 0:01:10]}  Qd7 {[%clk 0:01:12]} 22. Re4 {[%clk 0:01:07]}  Qf5 {[%clk 0:01:03]} 23. f3 {[%clk 0:01:03]}  b5 {[%clk 0:00:57]} 24. g4 {[%clk 0:00:45]}  Qg5 {[%clk 0:00:56]} 25. c3 {[%clk 0:00:41]}  h5 {[%clk 0:00:55]} 26. gxh5 {[%clk 0:00:38]}  Qxh5 {[%clk 0:00:55]} 27. h4 {[%clk 0:00:38]}  Qf5 {[%clk 0:00:52]} 28. Ka1 {[%clk 0:00:30]}  Rec8 {[%clk 0:00:48]} 29. a3 {[%clk 0:00:17]}  Rxc3 {[%clk 0:00:38]} 30. Qd1 {[%clk 0:00:16]}  Qxf3 {[%clk 0:00:24]} 31. Ka2 {[%clk 0:00:14]}  Qxd1 {[%clk 0:00:22]} 32. Rxd1 {[%clk 0:00:13]}  Rc2 {[%clk 0:00:22]} 33. Rd2 {[%clk 0:00:13]}  Rxd2 {[%clk 0:00:22]} 34. Nxd2 {[%clk 0:00:13]}  Rc2 {[%clk 0:00:23]} 35. Nb1 {[%clk 0:00:10]}  Rxb2+ {[%clk 0:00:23]} 36. Ka1 {[%clk 0:00:11]}  Re2+ {[%clk 0:00:23]} 37. Rd4 {[%clk 0:00:10]}  Bxd4+ {[%clk 0:00:23]} 0-1


[Site "https://www.chess.com"]

[Event "Titled Tuesday Blitz March 14 Late 2023"]
[White "Korchmar, Vasiliy"]
[Black "Hansen, Eric"]
[WhiteFideId "24131750"]
[BlackFideId "2606771"]
[WhiteElo "2370"]
[BlackElo "2569"]
[Result "0-1"]
[Round "03"]
[TimeControl "180+1"]
[Date "2023.03.14"]
[WhiteClock "0:00:19"]
[BlackClock "0:00:35"]

1. e4 {[%clk 0:03:00]}  e6 {[%clk 0:02:54]} 2. d4 {[%clk 0:03:00]}  d5 {[%clk 0:02:54]} 3. e5 {[%clk 0:03:01]}  Qd7 {[%clk 0:02:50]} 4. Nf3 {[%clk 0:02:59]}  b6 {[%clk 0:02:51]} 5. c3 {[%clk 0:02:53]}  Ba6 {[%clk 0:02:49]} 6. Bxa6 {[%clk 0:02:52]}  Nxa6 {[%clk 0:02:50]} 7. Nbd2 {[%clk 0:02:48]}  c5 {[%clk 0:02:50]} 8. Nf1 {[%clk 0:02:48]}  Ne7 {[%clk 0:02:49]} 9. Ng3 {[%clk 0:02:48]}  Rc8 {[%clk 0:02:33]} 10. a3 {[%clk 0:02:44]}  Nb8 {[%clk 0:02:30]} 11. O-O {[%clk 0:02:43]}  Nbc6 {[%clk 0:02:30]} 12. Be3 {[%clk 0:02:41]}  Na5 {[%clk 0:02:08]} 13. dxc5 {[%clk 0:02:23]}  bxc5 {[%clk 0:02:08]} 14. b4 {[%clk 0:02:23]}  Nb7 {[%clk 0:02:09]} 15. Ng5 {[%clk 0:02:07]}  h6 {[%clk 0:02:06]} 16. Qh5 {[%clk 0:02:03]}  g6 {[%clk 0:02:00]} 17. Qh3 {[%clk 0:01:58]}  Bg7 {[%clk 0:01:59]} 18. Nf3 {[%clk 0:01:55]}  Nc6 {[%clk 0:01:58]} 19. Rfe1 {[%clk 0:01:47]}  Nxe5 {[%clk 0:01:53]} 20. Nxe5 {[%clk 0:01:45]}  Bxe5 {[%clk 0:01:54]} 21. Bxc5 {[%clk 0:01:00]}  Bxc3 {[%clk 0:01:39]} 22. Ne4 {[%clk 0:01:00]}  Bxa1 {[%clk 0:01:27]} 23. Rxa1 {[%clk 0:00:55]}  dxe4 {[%clk 0:01:27]} 24. Qc3 {[%clk 0:00:56]}  Nxc5 {[%clk 0:00:55]} 25. Qxh8+ {[%clk 0:00:55]}  Ke7 {[%clk 0:00:56]} 26. Qxh6 {[%clk 0:00:51]}  Qd4 {[%clk 0:00:37]} 27. Rc1 {[%clk 0:00:34]}  Nd3 {[%clk 0:00:37]} 28. Qg5+ {[%clk 0:00:19]}  f6 {[%clk 0:00:35]} 0-1


[Site "https://www.chess.com"]